[Event "Titled Tuesday Blitz June 27 Late 2023"]
[White "Castella Garcia, Fausto"]
[Black "Reprintsev, Alexander"]
[WhiteFideId "3501922"]
[BlackFideId "14100541"]
[WhiteElo "2377"]
[BlackElo "2489"]
[Result "1-0"]
[Round "8"]
[TimeControl "180+2"]
[Date "2023.06.27"]
[WhiteClock "0:00:45"]
[BlackClock "0:00:45"]
[Board "80"]

1. e4 {[%clk 0:02:54]}  e5 {[%clk 0:02:59]} 2. Nf3 {[%clk 0:02:54]}  Nc6 {[%clk 0:02:58]} 3. Bb5 {[%clk 0:02:53]}  Bc5 {[%clk 0:02:57]} 4. O-O {[%clk 0:02:51]}  d6 {[%clk 0:02:54]} 5. d4 {[%clk 0:02:50]}  exd4 {[%clk 0:02:49]} 6. Nxd4 {[%clk 0:02:51]}  Bd7 {[%clk 0:02:48]} 7. Nf5 {[%clk 0:02:50]}  Qf6 {[%clk 0:02:38]} 8. Nc3 {[%clk 0:02:31]}  Bxf5 {[%clk 0:02:26]} 9. Nd5 {[%clk 0:02:27]}  Qd4 {[%clk 0:01:50]} 10. Qxd4 {[%clk 0:02:06]}  Bxd4 {[%clk 0:01:47]} 11. exf5 {[%clk 0:02:07]}  O-O-O {[%clk 0:01:46]} 12. c3 {[%clk 0:02:02]}  Nf6 {[%clk 0:01:32]} 13. Bxc6 {[%clk 0:01:51]}  bxc6 {[%clk 0:01:30]} 14. Ne7+ {[%clk 0:01:48]}  Kd7 {[%clk 0:01:30]} 15. Nxc6 {[%clk 0:01:47]}  Bxf2+ {[%clk 0:01:29]} 16. Rxf2 {[%clk 0:01:48]}  Kxc6 {[%clk 0:01:30]} 17. Bg5 {[%clk 0:01:47]}  Rde8 {[%clk 0:01:28]} 18. Bxf6 {[%clk 0:01:44]}  gxf6 {[%clk 0:01:28]} 19. Kf1 {[%clk 0:01:28]}  Re5 {[%clk 0:01:26]} 20. Re1 {[%clk 0:01:28]}  Rhe8 {[%clk 0:01:26]} 21. Rxe5 {[%clk 0:01:27]}  fxe5 {[%clk 0:01:25]} 22. Ke2 {[%clk 0:01:19]}  d5 {[%clk 0:01:25]} 23. g4 {[%clk 0:01:19]}  Kd6 {[%clk 0:01:25]} 24. g5 {[%clk 0:01:16]}  e4 {[%clk 0:01:22]} 25. b4 {[%clk 0:01:07]}  Ke5 {[%clk 0:01:22]} 26. Ke3 {[%clk 0:01:04]}  a5 {[%clk 0:01:20]} 27. a3 {[%clk 0:01:02]}  Ra8 {[%clk 0:01:10]} 28. b5 {[%clk 0:00:58]}  a4 {[%clk 0:01:08]} 29. f6 {[%clk 0:00:50]}  Rb8 {[%clk 0:01:06]} 30. Rb2 {[%clk 0:00:47]}  c5 {[%clk 0:00:51]} 31. bxc6 {[%clk 0:00:47]}  Rxb2 {[%clk 0:00:51]} 32. c7 {[%clk 0:00:47]}  Rc2 {[%clk 0:00:51]} 33. c8=Q {[%clk 0:00:47]}  d4+ {[%clk 0:00:45]} 34. cxd4+ {[%clk 0:00:45]} 1-0


[Site "https://www.chess.com"]

[Event "Titled Tuesday Blitz June 27 Late 2023"]
[White "lagarto93"]
[Black "Gasparyan, David"]
[BlackFideId "13311980"]
[WhiteElo "2579"]
[BlackElo "2422"]
[Result "1-0"]
[Round "8"]
[TimeControl "180+2"]
[Date "2023.06.27"]
[WhiteClock "0:01:33"]
[BlackClock "0:00:00"]
[Board "86"]

1. e4 {[%clk 0:03:00]}  c5 {[%clk 0:02:59]} 2. Nf3 {[%clk 0:03:00]}  e6 {[%clk 0:02:59]} 3. d4 {[%clk 0:03:00]}  cxd4 {[%clk 0:02:58]} 4. Nxd4 {[%clk 0:03:01]}  Qc7 {[%clk 0:02:55]} 5. Nc3 {[%clk 0:03:02]}  Nc6 {[%clk 0:02:53]} 6. Nxc6 {[%clk 0:02:59]}  dxc6 {[%clk 0:02:52]} 7. Bd3 {[%clk 0:03:00]}  Bd6 {[%clk 0:02:42]} 8. h3 {[%clk 0:02:55]}  Ne7 {[%clk 0:02:40]} 9. O-O {[%clk 0:02:54]}  O-O {[%clk 0:02:38]} 10. Re1 {[%clk 0:02:53]}  e5 {[%clk 0:02:34]} 11. Ne2 {[%clk 0:02:52]}  Be6 {[%clk 0:02:31]} 12. Ng3 {[%clk 0:02:52]}  f5 {[%clk 0:02:24]} 13. exf5 {[%clk 0:02:51]}  Nxf5 {[%clk 0:02:24]} 14. Qg4 {[%clk 0:02:40]}  Nd4 {[%clk 0:02:13]} 15. Qe4 {[%clk 0:02:30]}  g6 {[%clk 0:02:04]} 16. c3 {[%clk 0:02:29]}  Nf5 {[%clk 0:01:56]} 17. Bc4 {[%clk 0:02:26]}  Rae8 {[%clk 0:01:51]} 18. Bxe6+ {[%clk 0:02:24]}  Rxe6 {[%clk 0:01:51]} 19. Qc4 {[%clk 0:02:25]}  Qf7 {[%clk 0:01:51]} 20. Ne4 {[%clk 0:02:25]}  Ng7 {[%clk 0:01:32]} 21. Be3 {[%clk 0:02:21]}  Be7 {[%clk 0:01:27]} 22. Rad1 {[%clk 0:02:20]}  b6 {[%clk 0:01:15]} 23. Rd7 {[%clk 0:02:19]}  Qe8 {[%clk 0:01:07]} 24. Rxa7 {[%clk 0:02:16]}  Kh8 {[%clk 0:01:07]} 25. Bxb6 {[%clk 0:02:11]}  Qb8 {[%clk 0:01:04]} 26. Be3 {[%clk 0:02:04]}  Qxb2 {[%clk 0:00:58]} 27. Rd1 {[%clk 0:01:58]}  Qc2 {[%clk 0:00:48]} 28. Rdd7 {[%clk 0:01:50]}  Qb1+ {[%clk 0:00:33]} 29. Kh2 {[%clk 0:01:48]}  Re8 {[%clk 0:00:13]} 30. Bh6 {[%clk 0:01:35]}  Bf8 {[%clk 0:00:07]} 31. Bxg7+ {[%clk 0:01:33]}  Bxg7 {[%clk 0:00:07]} 32. Rxg7 {[%clk 0:01:34]}  Rf8 {[%clk 0:00:00]} 33. Rxh7+ {[%clk 0:01:33]} 1-0


[Site "https://www.chess.com"]

[Event "Titled Tuesday Blitz June 27 Late 2023"]
[White "Figorito, Nick"]
[Black "Ezat, Mohamed"]
[WhiteFideId "30923689"]
[BlackFideId "10600906"]
[WhiteElo "2418"]
[BlackElo "2552"]
[Result "1/2-1/2"]
[Round "8"]
[TimeControl "180+2"]
[Date "2023.06.27"]
[WhiteClock "0:00:15"]
[BlackClock "0:00:30"]
[Board "88"]

1. Nf3 {[%clk 0:03:00]}  Nf6 {[%clk 0:02:58]} 2. g3 {[%clk 0:03:01]}  g6 {[%clk 0:02:56]} 3. Bg2 {[%clk 0:03:02]}  Bg7 {[%clk 0:02:57]} 4. O-O {[%clk 0:03:02]}  O-O {[%clk 0:02:58]} 5. c4 {[%clk 0:03:02]}  c5 {[%clk 0:02:57]} 6. d4 {[%clk 0:03:02]}  d6 {[%clk 0:02:57]} 7. Nc3 {[%clk 0:03:02]}  Nc6 {[%clk 0:02:58]} 8. dxc5 {[%clk 0:03:00]}  dxc5 {[%clk 0:02:58]} 9. Qxd8 {[%clk 0:03:01]}  Rxd8 {[%clk 0:02:57]} 10. Be3 {[%clk 0:03:01]}  Be6 {[%clk 0:02:50]} 11. Bxc5 {[%clk 0:03:00]}  Bxc4 {[%clk 0:02:50]} 12. Rfd1 {[%clk 0:02:55]}  Nd5 {[%clk 0:02:48]} 13. Nxd5 {[%clk 0:02:48]}  Bxd5 {[%clk 0:02:46]} 14. Ba3 {[%clk 0:02:47]}  e6 {[%clk 0:02:32]} 15. Rd2 {[%clk 0:02:31]}  b5 {[%clk 0:02:28]} 16. Bc5 {[%clk 0:02:17]}  Rac8 {[%clk 0:02:23]} 17. Rad1 {[%clk 0:02:12]}  Bf6 {[%clk 0:02:23]} 18. b4 {[%clk 0:02:03]}  h5 {[%clk 0:02:20]} 19. a3 {[%clk 0:01:58]}  Kg7 {[%clk 0:02:19]} 20. h4 {[%clk 0:01:54]}  Bc3 {[%clk 0:01:42]} 21. Rd3 {[%clk 0:01:44]}  Bb2 {[%clk 0:01:42]} 22. Ng5 {[%clk 0:01:29]}  Bxg2 {[%clk 0:01:40]} 23. Kxg2 {[%clk 0:01:29]}  Bxa3 {[%clk 0:01:33]} 24. Rd7 {[%clk 0:01:19]}  Rxd7 {[%clk 0:01:25]} 25. Rxd7 {[%clk 0:01:20]}  Nd8 {[%clk 0:01:16]} 26. Rxa7 {[%clk 0:01:06]}  Bb2 {[%clk 0:01:10]} 27. Ra2 {[%clk 0:01:00]}  Bf6 {[%clk 0:01:04]} 28. Ne4 {[%clk 0:01:00]}  Be5 {[%clk 0:01:04]} 29. Ra5 {[%clk 0:00:59]}  Rb8 {[%clk 0:00:58]} 30. Bd6 {[%clk 0:00:54]}  Bxd6 {[%clk 0:00:57]} 31. Nxd6 {[%clk 0:00:55]}  Nc6 {[%clk 0:00:57]} 32. Rxb5 {[%clk 0:00:50]}  Rxb5 {[%clk 0:00:55]} 33. Nxb5 {[%clk 0:00:51]}  Nxb4 {[%clk 0:00:55]} 34. Nd4 {[%clk 0:00:52]}  Nd5 {[%clk 0:00:55]} 35. Nf3 {[%clk 0:00:51]}  f6 {[%clk 0:00:54]} 36. e3 {[%clk 0:00:50]}  e5 {[%clk 0:00:54]} 37. Nd2 {[%clk 0:00:49]}  Kf7 {[%clk 0:00:54]} 38. Ne4 {[%clk 0:00:50]}  Ne7 {[%clk 0:00:54]} 39. Kf3 {[%clk 0:00:49]}  Nf5 {[%clk 0:00:53]} 40. Kg2 {[%clk 0:00:49]}  Ke6 {[%clk 0:00:54]} 41. Kf3 {[%clk 0:00:50]}  Nd6 {[%clk 0:00:54]} 42. Nxd6 {[%clk 0:00:47]}  Kxd6 {[%clk 0:00:54]} 43. Ke4 {[%clk 0:00:45]}  Ke6 {[%clk 0:00:53]} 44. Kd3 {[%clk 0:00:41]}  Kf5 {[%clk 0:00:52]} 45. f3 {[%clk 0:00:41]}  e4+ {[%clk 0:00:52]} 46. Ke2 {[%clk 0:00:38]}  exf3+ {[%clk 0:00:52]} 47. Kxf3 {[%clk 0:00:39]}  Ke5 {[%clk 0:00:53]} 48. g4 {[%clk 0:00:24]}  hxg4+ {[%clk 0:00:32]} 49. Kxg4 {[%clk 0:00:25]}  Ke6 {[%clk 0:00:32]} 50. h5 {[%clk 0:00:21]}  g5 {[%clk 0:00:30]} 51. e4 {[%clk 0:00:14]}  Kf7 {[%clk 0:00:29]} 52. e5 {[%clk 0:00:14]}  fxe5 {[%clk 0:00:29]} 53. Kxg5 {[%clk 0:00:13]}  Kg7 {[%clk 0:00:29]} 54. Kf5 {[%clk 0:00:14]}  Kh6 {[%clk 0:00:29]} 55. Ke4 {[%clk 0:00:14]}  Kxh5 {[%clk 0:00:30]} 56. Kxe5 {[%clk 0:00:15]} 1/2-1/2


[Site "https://www.chess.com"]

[Event "Titled Tuesday Blitz June 27 Late 2023"]
[White "Palencia Morales, Wilson Guillermo"]
[Black "Vega Gutierrez, Sabrina"]
[WhiteFideId "4401859"]
[BlackFideId "2219026"]
[WhiteElo "2550"]
[BlackElo "2407"]
[Result "1-0"]
[Round "8"]
[TimeControl "180+2"]
[Date "2023.06.27"]
[WhiteClock "0:01:09"]
[BlackClock "0:00:00"]
[Board "89"]

1. d4 {[%clk 0:02:50]}  d5 {[%clk 0:02:59]} 2. c4 {[%clk 0:02:46]}  e6 {[%clk 0:02:59]} 3. Nf3 {[%clk 0:02:42]}  Nf6 {[%clk 0:02:59]} 4. Nc3 {[%clk 0:02:41]}  a6 {[%clk 0:02:58]} 5. cxd5 {[%clk 0:02:40]}  exd5 {[%clk 0:02:59]} 6. Bg5 {[%clk 0:02:39]}  Be7 {[%clk 0:02:36]} 7. e3 {[%clk 0:02:37]}  h6 {[%clk 0:02:35]} 8. Bxf6 {[%clk 0:02:32]}  Bxf6 {[%clk 0:02:35]} 9. Qb3 {[%clk 0:02:31]}  c6 {[%clk 0:02:35]} 10. Bd3 {[%clk 0:02:23]}  O-O {[%clk 0:02:22]} 11. O-O {[%clk 0:02:22]}  Qe7 {[%clk 0:02:13]} 12. Rfe1 {[%clk 0:02:14]}  Bg4 {[%clk 0:02:12]} 13. Nd2 {[%clk 0:02:09]}  b5 {[%clk 0:01:38]} 14. h3 {[%clk 0:02:06]}  Be6 {[%clk 0:01:36]} 15. Rac1 {[%clk 0:02:02]}  Nd7 {[%clk 0:01:34]} 16. Bb1 {[%clk 0:01:54]}  Nb6 {[%clk 0:01:31]} 17. Qc2 {[%clk 0:01:52]}  g6 {[%clk 0:01:31]} 18. e4 {[%clk 0:01:47]}  Bxd4 {[%clk 0:01:14]} 19. Ne2 {[%clk 0:01:47]}  Bg7 {[%clk 0:01:06]} 20. Qxc6 {[%clk 0:01:44]}  Nc4 {[%clk 0:00:51]} 21. Nxc4 {[%clk 0:01:44]}  dxc4 {[%clk 0:00:50]} 22. Nf4 {[%clk 0:01:39]}  Rfc8 {[%clk 0:00:38]} 23. Qb6 {[%clk 0:01:37]}  Bxb2 {[%clk 0:00:39]} 24. Rcd1 {[%clk 0:01:28]}  Be5 {[%clk 0:00:36]} 25. Nxe6 {[%clk 0:01:25]}  Qxe6 {[%clk 0:00:37]} 26. Qe3 {[%clk 0:01:25]}  Bg7 {[%clk 0:00:28]} 27. f4 {[%clk 0:01:23]}  Qc6 {[%clk 0:00:23]} 28. Kh2 {[%clk 0:01:22]}  Qc5 {[%clk 0:00:23]} 29. Qe2 {[%clk 0:01:22]}  c3 {[%clk 0:00:21]} 30. Bc2 {[%clk 0:01:22]}  Rd8 {[%clk 0:00:19]} 31. e5 {[%clk 0:01:21]}  Rxd1 {[%clk 0:00:01]} 32. Rxd1 {[%clk 0:01:21]}  Re8 {[%clk 0:00:01]} 33. Bb3 {[%clk 0:01:16]}  Qb4 {[%clk 0:00:02]} 34. g3 {[%clk 0:01:12]}  Re7 {[%clk 0:00:02]} 35. Qc2 {[%clk 0:01:10]}  Kh7 {[%clk 0:00:02]} 36. h4 {[%clk 0:01:10]}  Rc7 {[%clk 0:00:02]} 37. h5 {[%clk 0:01:09]}  a5 {[%clk 0:00:00]} 38. Bxf7 {[%clk 0:01:09]} 1-0


[Site "https://www.chess.com"]

[Event "Titled Tuesday Blitz June 27 Late 2023"]
[White "ElDivis"]
[Black "Szyszylo, Rafal"]
[BlackFideId "1109626"]
[WhiteElo "2545"]
[BlackElo "2404"]
[Result "0-1"]
[Round "8"]
[TimeControl "180+2"]
[Date "2023.06.27"]
[WhiteClock "0:00:07"]
[BlackClock "0:00:14"]
[Board "90"]

1. e4 {[%clk 0:03:00]}  d6 {[%clk 0:02:59]} 2. d4 {[%clk 0:03:00]}  Nf6 {[%clk 0:03:00]} 3. Nc3 {[%clk 0:03:01]}  g6 {[%clk 0:03:00]} 4. Be3 {[%clk 0:02:58]}  c6 {[%clk 0:03:00]} 5. f3 {[%clk 0:02:56]}  b5 {[%clk 0:03:00]} 6. Qd2 {[%clk 0:02:56]}  Nbd7 {[%clk 0:03:00]} 7. O-O-O {[%clk 0:02:56]}  Nb6 {[%clk 0:02:55]} 8. h4 {[%clk 0:02:39]}  h5 {[%clk 0:02:53]} 9. Nh3 {[%clk 0:02:37]}  b4 {[%clk 0:02:52]} 10. Nb1 {[%clk 0:02:34]}  a5 {[%clk 0:02:51]} 11. Ng5 {[%clk 0:02:33]}  Bg7 {[%clk 0:02:43]} 12. Bd3 {[%clk 0:02:24]}  Ba6 {[%clk 0:02:40]} 13. e5 {[%clk 0:02:15]}  Nfd5 {[%clk 0:02:15]} 14. e6 {[%clk 0:02:14]}  f5 {[%clk 0:01:48]} 15. Nf7 {[%clk 0:02:06]}  Qc8 {[%clk 0:01:48]} 16. Nxh8 {[%clk 0:02:06]}  Bxh8 {[%clk 0:01:48]} 17. Bf2 {[%clk 0:02:02]}  Qxe6 {[%clk 0:01:47]} 18. Rhe1 {[%clk 0:02:01]}  Qf6 {[%clk 0:01:32]} 19. Bxa6 {[%clk 0:01:55]}  Rxa6 {[%clk 0:01:33]} 20. Qe2 {[%clk 0:01:44]}  Ra7 {[%clk 0:01:28]} 21. Qe6 {[%clk 0:01:37]}  Qxe6 {[%clk 0:01:28]} 22. Rxe6 {[%clk 0:01:38]}  Kf7 {[%clk 0:01:28]} 23. Ree1 {[%clk 0:01:34]}  Nc4 {[%clk 0:01:17]} 24. Nd2 {[%clk 0:01:29]}  Nxd2 {[%clk 0:01:17]} 25. Kxd2 {[%clk 0:01:24]}  Rb7 {[%clk 0:01:04]} 26. g3 {[%clk 0:01:22]}  a4 {[%clk 0:01:02]} 27. Rb1 {[%clk 0:01:10]}  Ra7 {[%clk 0:00:56]} 28. c4 {[%clk 0:01:02]}  Nc7 {[%clk 0:00:45]} 29. Kd3 {[%clk 0:00:50]}  Ra5 {[%clk 0:00:44]} 30. Be3 {[%clk 0:00:49]}  e6 {[%clk 0:00:44]} 31. Bf4 {[%clk 0:00:48]}  Ke7 {[%clk 0:00:43]} 32. c5 {[%clk 0:00:47]}  Ne8 {[%clk 0:00:37]} 33. cxd6+ {[%clk 0:00:39]}  Nxd6 {[%clk 0:00:31]} 34. Bxd6+ {[%clk 0:00:39]}  Kxd6 {[%clk 0:00:32]} 35. Rbc1 {[%clk 0:00:40]}  Rd5 {[%clk 0:00:32]} 36. Rc4 {[%clk 0:00:40]}  c5 {[%clk 0:00:31]} 37. b3 {[%clk 0:00:38]}  axb3 {[%clk 0:00:29]} 38. axb3 {[%clk 0:00:38]}  Bxd4 {[%clk 0:00:29]} 39. Kc2 {[%clk 0:00:34]}  e5 {[%clk 0:00:26]} 40. Rd1 {[%clk 0:00:29]}  e4 {[%clk 0:00:24]} 41. fxe4 {[%clk 0:00:29]}  fxe4 {[%clk 0:00:25]} 42. Re1 {[%clk 0:00:30]}  Ke5 {[%clk 0:00:24]} 43. Kb1 {[%clk 0:00:29]}  e3 {[%clk 0:00:24]} 44. Rc2 {[%clk 0:00:25]}  Ke4 {[%clk 0:00:25]} 45. Ra2 {[%clk 0:00:25]}  Kd3 {[%clk 0:00:24]} 46. Rd1+ {[%clk 0:00:24]}  Kc3 {[%clk 0:00:18]} 47. Ra6 {[%clk 0:00:20]}  Kxb3 {[%clk 0:00:18]} 48. Rxg6 {[%clk 0:00:20]}  Rf5 {[%clk 0:00:16]} 49. Rd3+ {[%clk 0:00:18]}  Kc4 {[%clk 0:00:16]} 50. Rd1 {[%clk 0:00:19]}  Rf2 {[%clk 0:00:16]} 51. g4 {[%clk 0:00:18]}  e2 {[%clk 0:00:15]} 52. Rc1+ {[%clk 0:00:18]}  Kd3 {[%clk 0:00:14]} 53. gxh5 {[%clk 0:00:18]}  Rf1 {[%clk 0:00:15]} 54. Rg3+ {[%clk 0:00:07]}  Be3 {[%clk 0:00:14]} 0-1


[Site "https://www.chess.com"]

[Event "Titled Tuesday Blitz June 27 Late 2023"]
[White "BenchGM"]
[Black "Tissir, Mohamed"]
[BlackFideId "9000240"]
[WhiteElo "2384"]
[BlackElo "2516"]
[Result "0-1"]
[Round "8"]
[TimeControl "180+2"]
[Date "2023.06.27"]
[WhiteClock "0:00:00"]
[BlackClock "0:00:08"]
[Board "92"]

1. e4 {[%clk 0:03:00]}  c5 {[%clk 0:02:57]} 2. Nf3 {[%clk 0:03:00]}  d6 {[%clk 0:02:56]} 3. d4 {[%clk 0:03:01]}  cxd4 {[%clk 0:02:55]} 4. Nxd4 {[%clk 0:03:02]}  Nf6 {[%clk 0:02:55]} 5. Nc3 {[%clk 0:03:03]}  a6 {[%clk 0:02:56]} 6. f3 {[%clk 0:03:02]}  e6 {[%clk 0:02:55]} 7. Be3 {[%clk 0:02:59]}  b5 {[%clk 0:02:55]} 8. Qd2 {[%clk 0:02:57]}  Bb7 {[%clk 0:02:55]} 9. O-O-O {[%clk 0:02:53]}  Nbd7 {[%clk 0:02:55]} 10. g4 {[%clk 0:02:52]}  Nb6 {[%clk 0:02:56]} 11. g5 {[%clk 0:02:42]}  Nfd7 {[%clk 0:02:56]} 12. f4 {[%clk 0:02:06]}  b4 {[%clk 0:02:49]} 13. Nce2 {[%clk 0:02:05]}  Bxe4 {[%clk 0:02:48]} 14. Rg1 {[%clk 0:02:05]}  Nc4 {[%clk 0:02:47]} 15. Qxb4 {[%clk 0:01:59]}  Nxe3 {[%clk 0:02:47]} 16. Nxe6 {[%clk 0:01:58]}  fxe6 {[%clk 0:02:28]} 17. Qxe4 {[%clk 0:01:58]}  Nxd1 {[%clk 0:02:28]} 18. Qxe6+ {[%clk 0:01:58]}  Qe7 {[%clk 0:02:27]} 19. Qd5 {[%clk 0:01:58]}  Qe3+ {[%clk 0:02:16]} 20. Kb1 {[%clk 0:01:56]}  Nc3+ {[%clk 0:02:03]} 21. Nxc3 {[%clk 0:01:47]}  Qxg1 {[%clk 0:01:45]} 22. Qxa8+ {[%clk 0:01:47]}  Ke7 {[%clk 0:01:44]} 23. Qe4+ {[%clk 0:01:45]}  Kd8 {[%clk 0:01:36]} 24. Qa8+ {[%clk 0:01:41]}  Ke7 {[%clk 0:01:17]} 25. Qe4+ {[%clk 0:01:39]}  Ne5 {[%clk 0:00:41]} 26. Qe1 {[%clk 0:01:38]}  Qxh2 {[%clk 0:00:41]} 27. fxe5 {[%clk 0:01:00]}  Qxe5 {[%clk 0:00:42]} 28. Qd2 {[%clk 0:00:55]}  g6 {[%clk 0:00:37]} 29. Nd5+ {[%clk 0:00:53]}  Kf7 {[%clk 0:00:24]} 30. Nf6 {[%clk 0:00:42]}  Be7 {[%clk 0:00:20]} 31. Bc4+ {[%clk 0:00:31]}  Kg7 {[%clk 0:00:20]} 32. a3 {[%clk 0:00:20]}  Bxf6 {[%clk 0:00:18]} 33. gxf6+ {[%clk 0:00:20]}  Qxf6 {[%clk 0:00:18]} 34. Bxa6 {[%clk 0:00:18]}  Rb8 {[%clk 0:00:18]} 35. c3 {[%clk 0:00:15]}  h5 {[%clk 0:00:18]} 36. Qe3 {[%clk 0:00:10]}  Rf8 {[%clk 0:00:16]} 37. Qa7+ {[%clk 0:00:09]}  Rf7 {[%clk 0:00:16]} 38. Qe3 {[%clk 0:00:09]}  Re7 {[%clk 0:00:16]} 39. Qg3 {[%clk 0:00:08]}  h4 {[%clk 0:00:16]} 40. Qg1 {[%clk 0:00:07]}  h3 {[%clk 0:00:15]} 41. Bc4 {[%clk 0:00:04]}  Qf4 {[%clk 0:00:08]} 42. Bd5 {[%clk 0:00:00]}  Qf5+ {[%clk 0:00:08]} 0-1


[Site "https://www.chess.com"]

[Event "Titled Tuesday Blitz June 27 Late 2023"]
[White "Inepton_Fermion"]
[Black "Vaglio Mattey, Emanuel"]
[BlackFideId "6504167"]
[WhiteElo "2366"]
[BlackElo "2508"]
[Result "0-1"]
[Round "8"]
[TimeControl "180+2"]
[Date "2023.06.27"]
[WhiteClock "0:00:00"]
[BlackClock "0:00:17"]
[Board "93"]

1. d4 {[%clk 0:03:00]}  Nf6 {[%clk 0:02:57]} 2. Bg5 {[%clk 0:03:00]}  d5 {[%clk 0:02:52]} 3. Bxf6 {[%clk 0:02:59]}  exf6 {[%clk 0:02:52]} 4. e3 {[%clk 0:02:55]}  c6 {[%clk 0:02:51]} 5. c4 {[%clk 0:02:53]}  Bb4+ {[%clk 0:02:30]} 6. Nc3 {[%clk 0:02:45]}  O-O {[%clk 0:02:30]} 7. cxd5 {[%clk 0:02:25]}  cxd5 {[%clk 0:02:30]} 8. Bd3 {[%clk 0:02:21]}  Nc6 {[%clk 0:02:30]} 9. Ne2 {[%clk 0:02:18]}  Re8 {[%clk 0:02:29]} 10. O-O {[%clk 0:02:17]}  Be6 {[%clk 0:02:15]} 11. Nf4 {[%clk 0:02:16]}  Rc8 {[%clk 0:01:49]} 12. Rc1 {[%clk 0:02:15]}  a6 {[%clk 0:01:46]} 13. Na4 {[%clk 0:02:09]}  Bd6 {[%clk 0:01:37]} 14. Qf3 {[%clk 0:01:34]}  b5 {[%clk 0:00:46]} 15. Nc5 {[%clk 0:01:31]}  Bxc5 {[%clk 0:00:45]} 16. Rxc5 {[%clk 0:01:31]}  Ne5 {[%clk 0:00:39]} 17. Qe2 {[%clk 0:01:10]}  Rxc5 {[%clk 0:00:37]} 18. dxc5 {[%clk 0:01:03]}  Qa5 {[%clk 0:00:26]} 19. Qc2 {[%clk 0:00:31]}  g6 {[%clk 0:00:19]} 20. a3 {[%clk 0:00:26]}  b4 {[%clk 0:00:19]} 21. axb4 {[%clk 0:00:20]}  Qxb4 {[%clk 0:00:20]} 22. Rc1 {[%clk 0:00:16]}  d4 {[%clk 0:00:19]} 23. exd4 {[%clk 0:00:13]}  Qxd4 {[%clk 0:00:20]} 24. Nxe6 {[%clk 0:00:14]}  Rxe6 {[%clk 0:00:19]} 25. Bf1 {[%clk 0:00:13]}  Rc6 {[%clk 0:00:19]} 26. Qc3 {[%clk 0:00:11]}  Qxc3 {[%clk 0:00:15]} 27. Rxc3 {[%clk 0:00:12]}  a5 {[%clk 0:00:16]} 28. Bb5 {[%clk 0:00:12]}  Rc7 {[%clk 0:00:17]} 29. c6 {[%clk 0:00:11]}  g5 {[%clk 0:00:17]} 30. Kf1 {[%clk 0:00:07]}  Kf8 {[%clk 0:00:17]} 31. f3 {[%clk 0:00:06]}  Ke7 {[%clk 0:00:17]} 32. g3 {[%clk 0:00:06]}  Kd6 {[%clk 0:00:18]} 33. f4 {[%clk 0:00:06]}  Nxc6 {[%clk 0:00:18]} 34. fxg5 {[%clk 0:00:03]}  fxg5 {[%clk 0:00:18]} 35. Rf3 {[%clk 0:00:00]}  Nd4 {[%clk 0:00:17]} 0-1


[Site "https://www.chess.com"]

[Event "Titled Tuesday Blitz June 27 Late 2023"]
[White "Muhammed, Shuaau"]
[Black "Bilan, Danila"]
[WhiteFideId "16700406"]
[BlackFideId "24161918"]
[WhiteElo "2359"]
[BlackElo "2504"]
[Result "0-1"]
[Round "8"]
[TimeControl "180+2"]
[Date "2023.06.27"]
[WhiteClock "0:00:09"]
[BlackClock "0:00:03"]
[Board "94"]

1. e4 {[%clk 0:02:53]}  c6 {[%clk 0:02:59]} 2. Nf3 {[%clk 0:02:53]}  d5 {[%clk 0:03:00]} 3. Nc3 {[%clk 0:02:52]}  Bg4 {[%clk 0:02:59]} 4. exd5 {[%clk 0:02:51]}  cxd5 {[%clk 0:02:59]} 5. h3 {[%clk 0:02:52]}  Bxf3 {[%clk 0:02:58]} 6. Qxf3 {[%clk 0:02:53]}  Nf6 {[%clk 0:02:56]} 7. Bb5+ {[%clk 0:02:49]}  Nc6 {[%clk 0:02:56]} 8. d4 {[%clk 0:02:47]}  e6 {[%clk 0:02:55]} 9. O-O {[%clk 0:02:46]}  Be7 {[%clk 0:02:51]} 10. Ne2 {[%clk 0:02:44]}  O-O {[%clk 0:02:45]} 11. c3 {[%clk 0:02:44]}  Rc8 {[%clk 0:02:41]} 12. Bd3 {[%clk 0:02:41]}  Na5 {[%clk 0:02:28]} 13. Nf4 {[%clk 0:02:41]}  Nc4 {[%clk 0:02:26]} 14. Nh5 {[%clk 0:02:40]}  Nxh5 {[%clk 0:02:24]} 15. Qxh5 {[%clk 0:02:40]}  g6 {[%clk 0:02:25]} 16. Qf3 {[%clk 0:02:27]}  b5 {[%clk 0:02:15]} 17. Bh6 {[%clk 0:02:24]}  Re8 {[%clk 0:02:16]} 18. Rab1 {[%clk 0:02:21]}  Bg5 {[%clk 0:02:11]} 19. Bxg5 {[%clk 0:02:19]}  Qxg5 {[%clk 0:02:12]} 20. Bxc4 {[%clk 0:02:19]}  Rxc4 {[%clk 0:02:08]} 21. a3 {[%clk 0:02:07]}  Rec8 {[%clk 0:02:05]} 22. g3 {[%clk 0:02:04]}  a5 {[%clk 0:01:58]} 23. h4 {[%clk 0:02:04]}  Qf5 {[%clk 0:01:25]} 24. Qxf5 {[%clk 0:02:01]}  gxf5 {[%clk 0:01:26]} 25. Rfd1 {[%clk 0:01:43]}  b4 {[%clk 0:01:24]} 26. cxb4 {[%clk 0:01:39]}  axb4 {[%clk 0:01:25]} 27. Rd3 {[%clk 0:01:38]}  Rb8 {[%clk 0:01:09]} 28. b3 {[%clk 0:01:31]}  bxa3 {[%clk 0:00:31]} 29. Ra1 {[%clk 0:01:27]}  Rc2 {[%clk 0:00:26]} 30. Rxa3 {[%clk 0:01:27]}  Rb2 {[%clk 0:00:27]} 31. Rc3 {[%clk 0:01:22]}  Rb7 {[%clk 0:00:21]} 32. Kg2 {[%clk 0:01:21]}  Kg7 {[%clk 0:00:19]} 33. Kf3 {[%clk 0:01:18]}  Kf6 {[%clk 0:00:19]} 34. Ke3 {[%clk 0:01:14]}  Rb1 {[%clk 0:00:18]} 35. Rd3 {[%clk 0:01:08]}  Rb4 {[%clk 0:00:17]} 36. Kd2 {[%clk 0:01:01]}  Rf1 {[%clk 0:00:15]} 37. Kc3 {[%clk 0:01:00]}  Rb7 {[%clk 0:00:14]} 38. Rd2 {[%clk 0:00:58]}  f4 {[%clk 0:00:11]} 39. gxf4 {[%clk 0:00:50]}  Kf5 {[%clk 0:00:11]} 40. Rb2 {[%clk 0:00:44]}  Kxf4 {[%clk 0:00:06]} 41. b4 {[%clk 0:00:43]}  Rc1+ {[%clk 0:00:07]} 42. Kd3 {[%clk 0:00:42]}  Rc4 {[%clk 0:00:03]} 43. b5 {[%clk 0:00:41]}  Rcc7 {[%clk 0:00:02]} 44. Ra8 {[%clk 0:00:31]}  f6 {[%clk 0:00:02]} 45. Rf8 {[%clk 0:00:29]}  Kf5 {[%clk 0:00:02]} 46. f3 {[%clk 0:00:24]}  Rc1 {[%clk 0:00:02]} 47. Ra8 {[%clk 0:00:21]}  Rcc7 {[%clk 0:00:02]} 48. Ra6 {[%clk 0:00:20]}  Rc4 {[%clk 0:00:01]} 49. b6 {[%clk 0:00:18]}  Rc6 {[%clk 0:00:02]} 50. Rb5 {[%clk 0:00:17]}  Kf4 {[%clk 0:00:02]} 51. Ra7 {[%clk 0:00:14]}  Rbxb6 {[%clk 0:00:01]} 52. Rxb6 {[%clk 0:00:15]}  Rxb6 {[%clk 0:00:02]} 53. Rxh7 {[%clk 0:00:16]}  Kxf3 {[%clk 0:00:03]} 54. Rf7 {[%clk 0:00:14]}  f5 {[%clk 0:00:02]} 55. h5 {[%clk 0:00:14]}  Kf4 {[%clk 0:00:02]} 56. h6 {[%clk 0:00:14]}  Rb3+ {[%clk 0:00:02]} 57. Kc2 {[%clk 0:00:14]}  Rh3 {[%clk 0:00:03]} 58. h7 {[%clk 0:00:15]}  Ke4 {[%clk 0:00:04]} 59. Re7 {[%clk 0:00:14]}  Kxd4 {[%clk 0:00:04]} 60. Kd2 {[%clk 0:00:12]}  e5 {[%clk 0:00:04]} 61. Ke2 {[%clk 0:00:13]}  e4 {[%clk 0:00:04]} 62. Kf2 {[%clk 0:00:14]}  f4 {[%clk 0:00:04]} 63. Kg2 {[%clk 0:00:14]}  Rh6 {[%clk 0:00:04]} 64. Rf7 {[%clk 0:00:15]}  Ke3 {[%clk 0:00:04]} 65. Rd7 {[%clk 0:00:14]}  d4 {[%clk 0:00:04]} 66. Re7 {[%clk 0:00:15]}  d3 {[%clk 0:00:05]} 67. Re6 {[%clk 0:00:13]}  d2 {[%clk 0:00:05]} 68. Rxh6 {[%clk 0:00:14]}  d1=Q {[%clk 0:00:02]} 69. Rh3+ {[%clk 0:00:14]}  f3+ {[%clk 0:00:02]} 70. Kg3 {[%clk 0:00:14]}  Qg1+ {[%clk 0:00:02]} 71. Kh4 {[%clk 0:00:13]}  Kf4 {[%clk 0:00:02]} 72. Rxf3+ {[%clk 0:00:08]}  exf3 {[%clk 0:00:03]} 73. h8=Q {[%clk 0:00:09]}  Qg4# {[%clk 0:00:03]} 0-1


[Site "https://www.chess.com"]